[Event "GER-ch Youth-U14 2022"]
[Site "Willingen"]
[Date "2022.06.07"]
[Round "4.13"]
[White "Chinguun Sundui"]
[Black "Weyerer, Noah"]
[Result "1-0"]
[ECO "A40"]
[WhiteElo "1731"]
[BlackElo "1555"]
[Annotator "NA RC COMBH"]
[PlyCount "79"]
[EventDate "2022.06.05"]
[EventType "swiss"]
[EventRounds "9"]
[EventCountry "GER"]
[SourceTitle "playchess.com"]
[Source "ChessBase"]
[SourceQuality "1"]
[TimeControl "40/4500+30:900+30"]

1. d4 {[%emt 0:00:00]} e6 {[%emt 0:00:00]} 2. Nc3 {[%emt 0:00:00]} d5 {[%emt 0:00:00]} 3. Bf4 {[%emt 0:00:00]} Bd6 {[%emt 0:00:00]} 4. e3 {[%emt 0:00:00]} Bxf4 {[%emt 0:00:00]} 5. exf4 {[%emt 0:00:00]} Nf6 {[%emt 0:00:00]} 6. Nf3 {[%emt 0:00:00]} b6 {[%emt 0:00:00]} 7. g3 {[%emt 0:00:00]} Nbd7 {[%emt 0:00:00]} 8. Ne5 {[%emt 0:00:00]} Bb7 {[%emt 0:10:20]} 9. Bg2 {[%emt 0:00:00]} O-O {[%emt 0:01:56]} 10. O-O {[%emt 0:00:00]} c5 {[%emt 0:12:06]} 11. g4 {[%emt 0:04:13]} Ba6 {[%emt 0:06:15]} 12. Re1 {[%emt 0:00:37]} Qc7 {[%emt 0:05:45]} 13. g5 {[%emt 0:05:46]} cxd4 {[%emt 0:11:51]} 14. Qxd4 {[%emt 0:02:47]} Nxe5 {[%emt 0:04:08]} 15. Rxe5 {[%emt 0:08:00]} Nd7 {[%emt 0:03:54]} 16. Ree1 {[%emt 0:01:21]} Qc4 {[%emt 0:04:34]} 17. Qd2 {[%emt 0:01:40]} Rac8 {[%emt 0:02:14]} 18. Bf1 {[%emt 0:00:25]} Qc5 {[%emt 0:06:23]} 19. Bxa6 {[%emt 0:00:23]} Rc7 {[%emt 0:00:20]} 20. Bd3 {[%emt 0:00:59]} f6 {[%emt 0:01:51]} 21. Qe3 {[%emt 0:01:42]} Qxe3 {[%emt 0:00:41]} 22. fxe3 {[%emt 0:00:05]} fxg5 {[%emt 0:00:47]} 23. fxg5 {[%emt 0:01:16]} Ne5 {[%emt 0:01:00]} 24. Be2 {[%emt 0:00:37]} Rf5 {[%emt 0:00:34]} 25. h4 {[%emt 0:00:50]} Ng6 {[%emt 0:03:38]} 26. Bd3 {[%emt 0:00:23]} Rf3 {[%emt 0:00:36]} 27. Bxg6 {[%emt 0:00:07]} hxg6 {[%emt 0:00:01]} 28. Kg2 {[%emt 0:00:18]} Rcf7 {[%emt 0:00:29]} 29. Re2 {[%emt 0:00:09]} Kf8 {[%emt 0:00:43]} 30. Nb5 {[%emt 0:00:10]} e5 {[%emt 0:02:16]} 31. Nd6 {[%emt 0:00:08]} Ke7 {[%emt 0:00:09]} 32. Nxf7 {[%emt 0:00:06]} Rxf7 {[%emt 0:00:04]} 33. Rf2 {[%emt 0:00:10]} Rf5 {[%emt 0:00:05]} 34. Rxf5 {[%emt 0:00:13]} gxf5 {[%emt 0:00:03]} 35. h5 {[%emt 0:00:18]} Kf7 {[%emt 0:00:10]} 36. Rf1 {[%emt 0:00:17]} g6 {[%emt 0:00:10]} 37. h6 {[%emt 0:00:05]} Kg8 {[%emt 0:00:07]} 38. Rd1 {[%emt 0:00:07]} d4 {[%emt 0:00:10]} 39. exd4 {[%emt 0:00:04]} e4 {[%emt 0:00:13]} 40. d5 {[%emt 0:00:05]} 1-0

[Event "GER-ch Youth-U14 2022"]
[Site "Willingen"]
[Date "2022.06.07"]
[Round "4.14"]
[White "Torosyan, Bagrat"]
[Black "Huber, Benedikt"]
[Result "1-0"]
[ECO "C54"]
[WhiteElo "1683"]
[BlackElo "2288"]
[Annotator "TA"]
[PlyCount "71"]
[EventDate "2022.06.05"]
[EventType "swiss"]
[EventRounds "9"]
[EventCountry "GER"]
[SourceTitle "playchess.com"]
[Source "ChessBase"]
[SourceQuality "1"]
[TimeControl "40/4500+30:900+30"]

{[%evp 14,71,21,9,24,0,0,-14,-26,-14,40,-40,63,-20,93,81,259,233,236,235,235,213,231,191,275,267,264,305,315,315,369,301,227,146,281,120,126,112,91,-97,190,0,0,0,477,463,440,214,263,247,1276,1283,1249,1258,979,358,1771,835,802,758]} 1. e4 {[%emt 0:00:00]} e5 {[%emt 0:00:00]} 2. Nf3 {[%emt 0:00:00]} Nc6 {[%emt 0:00:00]} 3. Bc4 {[%emt 0:00:00]} Bc5 {[%emt 0:00:00]} 4. c3 {[%emt 0:00:00]} Nf6 {[%emt 0:00:00]} 5. d3 {[%emt 0:00:00]} d6 {[%emt 0:00:00]} 6. O-O {[%emt 0:00:00]} a6 {[%emt 0:00:00]} 7. Bb3 {[%emt 0:00:00] 7.Bb3 has lost popularity.} Ba7 {[%emt 0:00:00]} 8. Nbd2 {[%emt 0:00:00]} h6 {[%emt 0:00:00] C54: Giuoco Piano: 4 c3 Nf6, main lines with 5 d4 and 5 d3.} 9. h3 {[%emt 0:00:00]} g5 {[%emt 0:00:00]} 10. Nc4 {[%emt 0:00:00]} (10. d4 $5) 10... g4 {[%emt 0:00:00] The position is equal.} 11. hxg4 {[%emt 0:00:00]} Bxg4 {[%emt 0:00:00]} 12. Ne3 {[%emt 0:00:00]} ({Better is} 12. Be3 $14) 12... h5 {[%emt 0:01:43]} ({Black should play} 12... Bxe3 $15 13. fxe3 (13. Bxe3 Qd7 $11) 13... Qe7) 13. Nf5 {[%emt 0:20:33] [#]} (13. Nxg4 $14 Nxg4 14. Ng5) 13... Rh7 $146 {[%emt 0:15:58]} (13... Bxf5 $11 14. exf5 Qd7) ({Predecessor:} 13... Qd7 14. Bg5 Nh7 15. Bh4 Rg8 16. d4 Ng5 17. Nxg5 Bxd1 18. Bxf7+ Kf8 19. Be6 Rxg5 20. Bxd7 Rxf5 21. exf5 {1-0 (29) Indjic,A (2623)-Abdusattorov,N (2633) Warsaw 2021}) 14. Bg5 $16 {[%emt 0:17:08] And now d4 would win. White is more active.} Nb8 $2 {[%emt 0:10:22]} (14... Kd7 $16) 15. Ba4+ {[%emt 0:03:53]} b5 {[%emt 0:00:58]} 16. Bb3 {[%emt 0:00:13]} Nbd7 {[%emt 0:02:18]} 17. Bd5 {[%emt 0:01:33]} Rb8 {[%emt 0:00:27]} 18. a4 {[%emt 0:02:13][%cal Ba2a4,Ba4a5][%mdl 32] axb5 is the strong threat.} Bxf5 {[%emt 0:01:52]} (18... h4 $142 19. N5xh4 b4) 19. exf5 $18 {[%emt 0:00:13]} b4 {[%emt 0:01:40]} 20. Bc6 {[%emt 0:02:02] A strong pair of Bishops.} Rb6 {[%emt 0:01:51]} 21. Bxd7+ {[%emt 0:01:26]} Kxd7 {[%emt 0:00:10]} 22. a5 {[%emt 0:00:46]} Rb5 {[%emt 0:04:06]} 23. Qa4 {[%emt 0:01:02]} c6 {[%emt 0:02:17]} (23... Kc8 $16 {was called for.} 24. c4 (24. cxb4 Qh8 $16) 24... Rb7) 24. c4 {[%emt 0:03:28]} ({Less strong is} 24. cxb4 Qh8 $14) (24. Rac1 $18 {and White stays clearly on top.}) 24... Rb8 $16 {[%emt 0:01:35]} 25. Rac1 {[%emt 0:08:40][%cal Oc4c5]} Bc5 {[%emt 0:05:05]} 26. b3 $2 {[%emt 0:05:26]} (26. Rfe1 $16 {[%cal Oe1e5]} Rg7 27. d4 (27. Rxe5 Bxf2+ 28. Kxf2 Rxg5 $11) 27... exd4 28. Qd1) 26... Qh8 $2 {[%emt 0:03:19][%mdl 8192]} (26... Rg7 $1 $17 {[%cal Od8g8] keeps the pressure on. Strongly threatening ...Qg8!} 27. Rce1 Qg8) 27. Rcd1 $2 {[%emt 0:03:13]} ({White must play} 27. Rce1 $1 $18 {[%cal Re1e5] Threatens to win with Rxe5!} Rg8 28. Rxe5 $1 {[%mdl 512]} (28. d4 exd4 29. Bh4 Rhg7 $15) 28... Rxg5 29. Rxc5 Rxg2+ 30. Kxg2 dxc5 31. Ne5+ Kd6 32. Re1) 27... Ng4 {[%emt 0:04:29]} 28. d4 {[%emt 0:01:40] Really sharp!} Bxd4 {[%emt 0:01:40][%mdl 8192]} (28... exd4 $11 29. Rfe1 Re8) 29. Nxd4 $18 {[%emt 0:00:41]} exd4 {[%emt 0:00:06]} 30. f6 {[%emt 0:00:55]} (30. Rfe1 $142 {White wants to mate with Re7+.} f6 31. Bf4) 30... Nxf6 {[%emt 0:02:37] aiming for ...Ne4.} (30... Rg8 $2 31. Rfe1 $1 Ne5 32. f4 Rxg5 33. fxg5 $18) 31. Rxd4 $40 {[%emt 0:00:28][%mdl 128] White goes for the king.} Rg8 $2 {[%emt 0:18:13] [#]} (31... Ne8 32. Re1 f5) 32. Qxb4 $1 {[%emt 0:03:08]} Ne8 {[%emt 0:02:37]} 33. Qb7+ {[%emt 0:01:01]} Nc7 {[%emt 0:00:06] [#]} 34. Rfd1 $2 {[%emt 0:01:34]} Rg6 $2 {[%emt 0:00:30] [#]} (34... Qxd4 35. Rxd4 Rxg5) 35. Bf4 {[%emt 0:01:02]} (35. c5 $142 $1 Rhh6 36. Bxh6 Qxh6 37. cxd6 Rxd6 38. Rxd6+ Qxd6 39. Rxd6+ Kxd6 40. Qb4+ Kd7 41. Qf4) 35... Rhh6 {[%emt 0:01:11]} 36. c5 {[%emt 0:00:58] Weighted Error Value: White=0.79/Black=0.73} 1-0

[Event "GER-ch Youth-U14 2022"]
[Site "Willingen"]
[Date "2022.06.07"]
[Round "4.15"]
[White "Deschler, Arne"]
[Black "Kempe, Caius Emilian"]
[Result "0-1"]
[ECO "C01"]
[WhiteElo "1646"]
[BlackElo "1973"]
[Annotator "TA"]
[PlyCount "144"]
[EventDate "2022.06.05"]
[EventType "swiss"]
[EventRounds "9"]
[EventCountry "GER"]
[SourceTitle "playchess.com"]
[Source "ChessBase"]
[SourceQuality "1"]
[TimeControl "40/4500+30:900+30"]

{[%evp 14,144,14,-1,43,43,48,39,44,20,42,13,16,-11,65,28,47,25,29,43,54,19,21,-16,-14,0,10,11,20,0,0,0,0,0,22,7,14,-14,23,6,33,17,70,54,160,0,55,45,65,0,94,45,69,0,0,-120,-122,-114,-118,-108,14,-65,-72,-53,-69,-29,0,0,0,0,0,-133,-133,-133,-133,-133,-129,-238,-234,-227,-226,-410,-384,-409,-118,-118,-37,-396,-104,-887,-742,-1185,-931,-6943,-5513,-5085,-6676,-1618,-1231,-1650,-1000,-1690,-1690,-29977,-29978,-29981,-29982,-29981,-29979,-29979,-29979,-29979,-29979,-29979,-29980,-29980,-29981,-29981,-29982,-29982,-29983,-29983,-29984,-29984,-29985,-29985,-29986,-29986,-29987,-29991,-29992,-29993,-29994]} 1. e4 {[%emt 0:00:00]} e6 {[%emt 0:00:00]} 2. d4 {[%emt 0:00:00]} d5 {[%emt 0:00:00]} 3. exd5 {[%emt 0:00:00]} exd5 {[%emt 0:00:00]} 4. Bd3 {[%emt 0:00:00]} Nc6 {[%emt 0:00:00]} 5. c3 {[%emt 0:00:00]} Bd6 {[%emt 0:00:00]} 6. Qf3 {[%emt 0:00:00]} Be6 {[%emt 0:00:00]} 7. Ne2 {[%emt 0:00:00]} Qd7 {[%emt 0:00:00]} 8. Bf4 {[%emt 0:00:00]} Nge7 {[%emt 0:00:00] C01: French: Exchange Variation.} 9. Bxd6 {[%emt 0:00:00]} Qxd6 {[%emt 0:00:00]} 10. Nd2 {[%emt 0:00:00]} O-O-O {[%emt 0:00:00] White is slightly better.} 11. O-O-O {[%emt 0:00:00]} Ng6 {[%emt 0:00:00]} 12. g3 {[%emt 0:04:52] [#]} Kb8 $146 {[%emt 0:03:04]} ({Predecessor:} 12... Qd7 13. h3 Kb8 14. h4 Rhe8 15. Rde1 Re7 16. Nf1 Bg4 17. Qg2 Nge5 18. dxe5 Nxe5 {0-1 (32) Laurent,M (2018)-Theunissen,K (2154) Leuven 2004}) 13. Nb3 {[%emt 0:07:29]} f6 {[%emt 0:10:34]} (13... h5 $11) 14. Rhe1 {[%emt 0:04:23]} Bf7 {[%emt 0:02:16]} 15. Bc2 {[%emt 0:06:16]} Nce7 {[%emt 0:28:53][%cal Bc6e7,Be7c8,Bc8d6,Bd6c4][%mdl 32]} 16. Nc5 {[%emt 0:10:45]} Nc8 {[%emt 0:02:45]} 17. Qh5 {[%emt 0:10:56]} b6 {[%emt 0:11:17]} 18. Na6+ {[%emt 0:03:43]} Kb7 {[%emt 0:02:18]} 19. Nb4 {[%emt 0:00:28]} a5 {[%emt 0:01:00]} 20. Nd3 {[%emt 0:00:55]} Qc6 {[%emt 0:03:32]} 21. Qg4 {[%emt 0:06:18]} Nd6 {[%emt 0:05:04]} 22. h4 {[%emt 0:06:49]} h5 {[%emt 0:04:54]} 23. Qf3 {[%emt 0:01:52]} Nc4 {[%emt 0:03:01]} 24. Nef4 {[%emt 0:06:09]} Nxf4 {[%emt 0:00:22]} 25. Qxf4 {[%emt 0:00:54]} Rd7 {[%emt 0:01:24]} 26. Re2 {[%emt 0:01:05]} Qb5 {[%emt 0:00:32][%cal Oc4b2]} 27. Rde1 {[%emt 0:01:51]} Rhd8 {[%emt 0:00:10]} (27... Kb8 $11) 28. Qf5 {[%emt 0:03:10]} a4 {[%emt 0:01:41]} (28... Rh8 $14) 29. Re7 $2 {[%emt 0:00:47]} (29. a3 $1 $16) 29... a3 {[%emt 0:01:59]} (29... Rxe7 $11 30. Rxe7 Nd6) 30. b3 $1 $14 {[%emt 0:00:14]} Nd6 {[%emt 0:00:11]} 31. Qf4 {[%emt 0:00:53]} (31. Qf3 $14) 31... Qc6 {[%emt 0:00:40]} (31... Ne4 $11 {remains equal.} 32. c4 Qa5 33. R1xe4 dxe4 34. Qxe4+ Kb8) 32. Rxd7 {[%emt 0:00:18]} (32. R7e3 $16) 32... Rxd7 {[%emt 0:00:08]} 33. Qd2 {[%emt 0:01:29]} ({Better is} 33. Re3 $14) 33... Ne4 $11 {[%emt 0:00:08]} 34. Rxe4 dxe4 $17 {[%emt 0:00:02]} 35. Nb4 {[%emt 0:01:23][%cal Bd3b4,Bb4a6,Ba6c5][%mdl 32]} Qe6 {[%emt 0:00:57]} 36. Qe2 {[%emt 0:00:22]} c5 {[%emt 0:01:34]} (36... Bg6 $17 37. Bd1 Kb8) 37. Bxe4+ ({White should try} 37. Qa6+ $11 Kc7 38. Qa7+ (38. dxc5 bxc5 39. Qa5+ Kb7 $11) 38... Kd8 39. Qa8+ Ke7 40. Nc6+ Kd6 41. Nd8) 37... Kc7 $15 {[%emt 0:00:31][%cal Bb7c7,Bc7d8,Bd8e7][%mdl 32]} 38. Na6+ {[%emt 0:01:37]} Kd8 {[%emt 0:00:35]} 39. dxc5 {[%emt 0:02:14]} Qe5 {[%emt 0:00:08]} 40. Qe3 {[%emt 0:01:21] Threatens to win with c6.} bxc5 $40 {[%emt 0:01:16][%mdl 128] Black is up to no good.} 41. Nxc5 {[%emt 0:17:21] aiming for f4.} Rc7 {[%emt 0:18:42] Really sharp!} 42. Qd4+ {[%emt 0:01:10]} (42. b4 $1 $11 {was the only way to keep the balance.}) 42... Ke7 $17 {[%emt 0:00:00]} ({Inferior is} 42... Qxd4 43. cxd4 Re7 44. Nb7+ Kc7 45. Nc5 $17) 43. Qxe5+ {[%emt 0:00:00]} fxe5 {[%emt 0:00:00][%mdl 4096] Endgame KRB-KBN} 44. Na4 {[%emt 0:00:00]} Be8 {[%emt 0:00:00]} 45. Kc2 {[%emt 0:00:00]} (45. Kd2 $17) 45... Bxa4 $19 {[%emt 0:00:00]} 46. bxa4 {[%emt 0:00:00] KR-KB} Rc4 {[%emt 0:00:00][%csl LRa4,LRe4]} 47. Bg6 {[%emt 0:00:00]} (47. f3 {was worth a try.} Rxa4 48. Bd3) 47... Rxa4 {[%emt 0:00:00] And now ...Ra6 would win.} 48. Bxh5 {[%emt 0:00:00] [#]} Ra7 $2 {[%emt 0:00:00]} (48... Ra6 $1 $19 {[%cal Ra6b6]} 49. Kb3 e4) 49. Kb3 {[%emt 0:00:00] [#]} Kd6 {[%emt 0:00:00]} ({Black should play} 49... Ra6 $1 $17 {Hoping for ...e4.} 50. f3 Rh6) 50. Kb4 $2 {[%emt 0:00:00][%mdl 8192]} (50. Bg6 $15) 50... Kd5 $2 {[%emt 0:00:00]} (50... Rb7+ $19 {is more deadly.} 51. Kxa3 e4) 51. Bf3+ $2 {[%emt 0:00:00][%mdl 8192]} (51. f3 $17) 51... e4 {[%emt 0:00:00]} 52. Bd1 {[%emt 0:00:00]} Rb7+ {[%emt 0:00:00]} 53. Kxa3 {[%emt 0:00:00]} Kc4 {[%emt 0:00:00]} 54. Bb3+ {[%emt 0:00:00]} Kxc3 {[%emt 0:00:00] ( -> ...Ra7+)} 55. Ka4 {[%emt 0:00:00]} Kd3 {[%emt 0:00:00] ...Ke2 is the strong threat.} 56. Bd5 {[%emt 0:00:00]} Re7 {[%emt 0:00:00]} 57. g4 {[%emt 0:00:00]} Ke2 {[%emt 0:00:00]} 58. h5 {[%emt 0:00:00]} Kxf2 {[%emt 0:00:00] Black mates.} 59. g5 {[%emt 0:00:00]} e3 {[%emt 0:00:00]} 60. Bc4 {[%emt 0:00:00]} e2 {[%emt 0:00:00]} 61. Bxe2 Rxe2 {[%emt 0:00:00] KR-K3P} 62. Kb3 {[%emt 0:01:04]} Re5 {[%emt 0:00:00]} 63. h6 {[%emt 0:00:15]} g6 {[%emt 0:00:00]} 64. h7 {[%emt 0:00:28]} Re8 {[%emt 0:00:00]} 65. Kc4 {[%emt 0:00:11]} Rh8 {[%emt 0:00:00]} 66. Kd5 {[%emt 0:00:29]} Rxh7 {[%emt 0:00:00] KR-KPP} 67. Ke6 {[%emt 0:00:06]} Ra7 {[%emt 0:00:00]} 68. Kf6 {[%emt 0:00:28]} Ra6+ {[%emt 0:00:00]} 69. Kg7 {[%emt 0:00:15]} Kf3 {[%emt 0:00:00]} 70. a4 {[%emt 0:00:19]} Kf4 {[%emt 0:00:00]} 71. Kh6 {[%emt 0:00:04]} Kf5 {[%emt 0:00:00]} 72. a5 {[%emt 0:00:09]} Rxa5 {[%emt 0:00:00] Weighted Error Value: White=0.92/Black=0.56} 0-1

[Event "GER-ch Youth-U14 2022"]
[Site "Willingen"]
[Date "2022.06.07"]
[Round "4.16"]
[White "Jahnz, Laurin"]
[Black "Shapiro, Danil"]
[Result "1/2-1/2"]
[ECO "B40"]
[WhiteElo "1681"]
[BlackElo "1468"]
[Annotator "NA RC COMBH"]
[PlyCount "87"]
[EventDate "2022.06.05"]
[EventType "swiss"]
[EventRounds "9"]
[EventCountry "GER"]
[SourceTitle "playchess.com"]
[Source "ChessBase"]
[SourceQuality "1"]
[TimeControl "40/4500+30:900+30"]

1. e4 {[%emt 0:00:00]} c5 {[%emt 0:00:00]} 2. Nf3 {[%emt 0:00:00]} e6 {[%emt 0:00:00]} 3. d3 {[%emt 0:00:00]} Nc6 {[%emt 0:00:00]} 4. g3 {[%emt 0:00:00]} g6 {[%emt 0:00:00]} 5. Bg2 {[%emt 0:00:00]} Bg7 {[%emt 0:00:00]} 6. O-O {[%emt 0:00:00]} d6 {[%emt 0:00:00]} 7. Nbd2 {[%emt 0:00:00]} b5 {[%emt 0:00:00]} 8. Re1 {[%emt 0:00:00]} e5 {[%emt 0:00:00]} 9. c3 {[%emt 0:00:00]} Nf6 {[%emt 0:00:00]} 10. Nf1 {[%emt 0:00:00]} Nd7 {[%emt 0:00:00]} 11. Bg5 {[%emt 0:07:05]} f6 {[%emt 0:00:00]} 12. Bd2 {[%emt 0:00:06]} Nb6 {[%emt 0:00:00]} 13. h4 {[%emt 0:01:42]} O-O {[%emt 0:02:58]} 14. N1h2 {[%emt 0:04:47]} h6 {[%emt 0:04:49]} 15. Qc1 {[%emt 0:02:37]} Kh7 {[%emt 0:00:09]} 16. g4 {[%emt 0:02:14]} f5 {[%emt 0:02:52]} 17. exf5 {[%emt 0:05:06]} gxf5 {[%emt 0:00:19]} 18. Ng5+ {[%emt 0:06:22]} hxg5 {[%emt 0:02:20]} 19. Bxc6 {[%emt 0:00:27]} Rb8 {[%emt 0:00:34]} 20. Bxg5 {[%emt 0:00:14]} Qc7 {[%emt 0:00:50]} 21. Bf3 {[%emt 0:00:43]} fxg4 {[%emt 0:01:29]} 22. Bxg4 {[%emt 0:03:58]} Qf7 {[%emt 0:00:53]} 23. Qe3 {[%emt 0:04:06]} Bb7 {[%emt 0:05:34]} 24. Nf1 {[%emt 0:13:27]} Nd5 {[%emt 0:00:22]} 25. Qg3 {[%emt 0:00:08]} Bf6 {[%emt 0:01:10]} 26. Bf5+ {[%emt 0:00:36]} Kh8 {[%emt 0:00:07]} 27. Qh3 {[%emt 0:06:17]} Nf4 {[%emt 0:07:18]} 28. Bxf4 {[%emt 0:00:56]} exf4 {[%emt 0:00:36]} 29. Bg4 {[%emt 0:08:11]} Rg8 {[%emt 0:01:03]} 30. Kh2 {[%emt 0:00:59]} Rxg4 {[%emt 0:03:50]} 31. Qxg4 {[%emt 0:00:18]} Rg8 {[%emt 0:01:02]} 32. Qe6 {[%emt 0:00:13]} Qg6 {[%emt 0:00:38]} 33. Ne3 {[%emt 0:02:04]} fxe3 {[%emt 0:14:29]} 34. Rg1 {[%emt 0:01:31]} Be5+ {[%emt 0:00:05]} 35. Qxe5+ {[%emt 0:00:04]} dxe5 {[%emt 0:00:21]} 36. Rxg6 {[%emt 0:00:04]} Rxg6 {[%emt 0:00:12]} 37. fxe3 {[%emt 0:00:03]} Rg4 {[%emt 0:12:00]} 38. d4 {[%emt 0:06:48]} exd4 {[%emt 0:02:57]} 39. exd4 {[%emt 0:00:05]} cxd4 {[%emt 0:00:05]} 40. cxd4 {[%emt 0:00:05]} Rxh4+ {[%emt 0:00:05]} 41. Kg3 {[%emt 0:15:12]} Rxd4 {[%emt 0:15:04]} 42. Re1 {[%emt 0:08:39]} a5 {[%emt 0:05:51]} 43. Re8+ {[%emt 0:01:40]} Kg7 {[%emt 0:00:06]} 44. Re7+ 1/2-1/2

[Event "GER-ch Youth-U14 2022"]
[Site "Willingen"]
[Date "2022.06.07"]
[Round "4.17"]
[White "Detjen, Mattes"]
[Black "Uhlmann, Tim"]
[Result "0-1"]
[ECO "C44"]
[WhiteElo "1098"]
[BlackElo "1776"]
[Annotator "NA RC COMBH"]
[PlyCount "60"]
[EventDate "2022.06.05"]
[EventType "swiss"]
[EventRounds "9"]
[EventCountry "GER"]
[SourceTitle "playchess.com"]
[Source "ChessBase"]
[SourceQuality "1"]
[TimeControl "40/4500+30:900+30"]

1. e4 {[%emt 0:00:00]} e5 {[%emt 0:00:00]} 2. Nf3 {[%emt 0:00:00]} Nc6 {[%emt 0:00:00]} 3. d4 {[%emt 0:00:00]} exd4 {[%emt 0:00:00]} 4. Nxd4 {[%emt 0:00:00]} Bb4+ {[%emt 0:00:00]} 5. c3 {[%emt 0:00:00]} Bc5 {[%emt 0:00:00]} 6. Be3 {[%emt 0:00:00]} Bb6 {[%emt 0:00:00]} 7. Nf5 {[%emt 0:00:00]} Bxe3 {[%emt 0:00:00]} 8. Nxe3 {[%emt 0:00:00]} Nf6 {[%emt 0:00:00]} 9. Bd3 {[%emt 0:00:00]} O-O {[%emt 0:00:00]} 10. c4 {[%emt 0:00:00]} d6 {[%emt 0:00:00]} 11. Nc3 {[%emt 0:00:00]} Ne5 {[%emt 0:00:00]} 12. Bc2 {[%emt 0:00:00]} Nfg4 {[%emt 0:02:18]} 13. Nxg4 {[%emt 0:06:44]} Bxg4 {[%emt 0:00:18]} 14. f3 {[%emt 0:00:20]} Be6 {[%emt 0:08:20]} 15. b3 {[%emt 0:06:12]} Qh4+ {[%emt 0:03:26]} 16. Ke2 {[%emt 0:05:01]} Qg5 {[%emt 0:07:15]} 17. Kf2 {[%emt 0:09:26]} f5 18. Rf1 Rf6 {[%emt 0:29:42]} 19. Kg1 {[%emt 0:07:59]} Qe3+ {[%emt 0:01:47]} 20. Kh1 {[%emt 0:02:59]} Qxc3 {[%emt 0:00:14]} 21. f4 {[%emt 0:04:21]} Ng4 {[%emt 0:08:58]} 22. exf5 {[%emt 0:02:50]} Ne3 {[%emt 0:01:22]} 23. Qf3 {[%emt 0:05:06]} Qxc2 {[%emt 0:00:51]} 24. Qxe3 {[%emt 0:01:17]} Qxf5 {[%emt 0:00:23]} 25. Rae1 {[%emt 0:01:38]} Bd7 {[%emt 0:01:20]} 26. Qf3 {[%emt 0:05:17]} Bc6 {[%emt 0:00:11]} 27. Qf2 {[%emt 0:01:32]} Rg6 {[%emt 0:01:29]} 28. Rg1 {[%emt 0:00:32]} Rf8 {[%emt 0:00:29]} 29. Ref1 {[%emt 0:00:54]} Rh6 {[%emt 0:04:01]} 30. Qg3 {[%emt 0:01:04]} Rff6 {[%emt 0:05:05]} 0-1

[Event "GER-ch Youth-U14 2022"]
[Site "Willingen"]
[Date "2022.06.07"]
[Round "4.18"]
[White "Goldinov, Daniel"]
[Black "Fruth, David"]
[Result "0-1"]
[ECO "B22"]
[WhiteElo "1626"]
[BlackElo "1648"]
[Annotator "NA RC COMBH"]
[PlyCount "34"]
[EventDate "2022.06.05"]
[EventType "swiss"]
[EventRounds "9"]
[EventCountry "GER"]
[SourceTitle "playchess.com"]
[Source "ChessBase"]
[SourceQuality "1"]
[TimeControl "40/4500+30:900+30"]

1. e4 c5 2. c3 {[%emt 0:00:00]} d5 {[%emt 0:00:00]} 3. exd5 {[%emt 0:00:00]} Qxd5 {[%emt 0:00:00]} 4. Nf3 {[%emt 0:00:00]} g6 {[%emt 0:00:00]} 5. Na3 {[%emt 0:00:00]} a6 {[%emt 0:00:00]} 6. d4 {[%emt 0:00:00]} Bg4 {[%emt 0:00:00]} 7. Be2 {[%emt 0:02:19]} Bg7 {[%emt 0:00:00]} 8. O-O {[%emt 0:04:48]} Nc6 {[%emt 0:00:00]} 9. h3 {[%emt 0:08:21]} Bxf3 {[%emt 0:06:02]} 10. Bxf3 {[%emt 0:00:25]} Qd7 {[%emt 0:00:21]} 11. dxc5 {[%emt 0:04:16]} Qc7 {[%emt 0:00:06]} 12. Qa4 {[%emt 0:02:33]} e6 {[%emt 0:03:13]} 13. Nc4 {[%emt 0:12:16]} Ke7 {[%emt 0:04:51]} 14. Re1 {[%emt 0:21:38]} h6 {[%emt 0:06:14]} 15. Nb6 {[%emt 0:03:20]} Rd8 {[%emt 0:00:39]} 16. Nd5+ {[%emt 0:01:14]} Rxd5 {[%emt 0:00:02]} 17. Bxd5 {[%emt 0:00:05]} Ne5 {[%emt 0:00:30]} 0-1

[Event "GER-ch Youth-U14 2022"]
[Site "Willingen"]
[Date "2022.06.07"]
[Round "4.19"]
[White "Schwan, Aaron"]
[Black "Goepfert, Gregor"]
[Result "1-0"]
[ECO "C54"]
[WhiteElo "1671"]
[BlackElo "1446"]
[Annotator "NA RC COMBH"]
[PlyCount "47"]
[EventDate "2022.06.05"]
[EventType "swiss"]
[EventRounds "9"]
[EventCountry "GER"]
[SourceTitle "playchess.com"]
[Source "ChessBase"]
[SourceQuality "1"]
[TimeControl "40/4500+30:900+30"]

1. e4 {[%emt 0:00:00]} e5 {[%emt 0:00:00]} 2. Nf3 {[%emt 0:00:00]} Nc6 {[%emt 0:00:00]} 3. Bc4 {[%emt 0:00:00]} Bc5 {[%emt 0:00:00]} 4. c3 {[%emt 0:00:00]} Nf6 {[%emt 0:00:00]} 5. d3 {[%emt 0:00:00]} d6 {[%emt 0:00:00]} 6. Bb3 {[%emt 0:00:00]} a6 {[%emt 0:00:00]} 7. Nbd2 {[%emt 0:00:00]} Ba7 {[%emt 0:00:00]} 8. Nf1 {[%emt 0:00:00]} d5 {[%emt 0:00:00]} 9. Qe2 {[%emt 0:00:00]} dxe4 {[%emt 0:00:00]} 10. dxe4 {[%emt 0:00:00]} O-O {[%emt 0:00:00]} 11. Ng3 {[%emt 0:00:00]} h6 {[%emt 0:00:00]} 12. O-O {[%emt 0:00:00]} Qe7 {[%emt 0:00:00]} 13. Nh4 {[%emt 0:00:00]} Bg4 {[%emt 0:00:00]} 14. Qc2 {[%emt 0:00:00]} Be6 {[%emt 0:04:50]} 15. Nhf5 {[%emt 0:00:00]} Qe8 {[%emt 0:00:39]} 16. Qe2 {[%emt 0:09:44]} Kh7 {[%emt 0:07:37]} 17. Qf3 {[%emt 0:13:12]} Bxb3 {[%emt 0:02:37]} 18. axb3 {[%emt 0:00:50]} Qe6 {[%emt 0:00:43]} 19. Nxg7 {[%emt 0:04:39]} Kxg7 {[%emt 0:05:40]} 20. Nf5+ {[%emt 0:10:59]} Kh7 {[%emt 0:05:20]} 21. Bxh6 {[%emt 0:01:46]} Rg8 {[%emt 0:05:08]} 22. Qh3 {[%emt 0:02:20]} Ng4 {[%emt 0:11:57]} 23. Bg7+ {[%emt 0:04:11]} Nh6 {[%emt 0:00:42]} 24. Bxh6 1-0